Cogmind - Beta 16 *** ADVENTURER MODE // 2026.02.08 @ 04:52:03 Player: Tisa Result: Destroyed by G-47 Trooper with Particle Gun Performance ------------- Evolutions (2) 1000 Regions Visited (3) 600 Robots Destroyed (32) 160 Value Destroyed (586) 586 Prototype IDs (0) 0 Alien Tech Used (0) 0 Bonus (0) 0 TOTAL SCORE: 2346 Bonus ------- None Cogmind --------- Core Integrity 0/550 Matter 252/300 Energy 97/100 System Corruption 0% Temperature Cool (18) Movement Core (100) Ox1 Location -8/Materials Parts ------- > --- POWER (2) -------- (None) > --- PROPULSION (4) --- (None) > --- UTILITY (2) ------ Small Storage Unit > --- WEAPON (3) ------- (None) > --- INVENTORY (8) ---- Aluminum Leg Structural Scanner ECM Suite Datajack Scrap Shield Fragment (45) Scrap Shield Fragment (45) Scrap Shield Fragment (44) Peak State ------------ > --- POWER ------------ Light Ion Engine > --- PROPULSION ------- Aluminum Leg Aluminum Leg > --- UTILITY ---------- Small Storage Unit Improved Terrain Scanner > --- WEAPON ----------- Small Laser Small Laser > --- INVENTORY -------- Compact Wheel Assault Rifle [Rating: 9] Favorites ----------- Power Light Ion Engine Engine Light Ion Engine Propulsion Aluminum Leg Leg Aluminum Leg Utility Small Storage Unit Device Structural Scanner Storage Small Storage Unit Weapon Light Assault Rifle Energy Gun Small Laser Energy Cannon Ion Cannon Ballistic Gun Light Assault Rifle Launcher Grenade Launcher Special Melee Weapon Datajack Build | -11 -10 -10 -8 ------- Run | Yrd Mat Sub Mat Slots Evolved 4 | . . . 4 Power 1 | . . . 1 Propulsion 2 | . . . 2 Utility . | . . . . Weapon 1 | . . . 1 Parts Attached 20 | 7 8 1 4 Power 1 | 1 . . . Engine 1 | 1 . . . Core . | . . . . Reactor . | . . . . Propulsion 4 | 2 2 . . Treads . | . . . . Leg 4 | 2 2 . . Wheel . | . . . . Hover . | . . . . Flight . | . . . . Utility 6 | 2 3 1 . Device 5 | 1 3 1 . Storage 1 | 1 . . . Processor . | . . . . Hackware . | . . . . Protection . | . . . . Artifact . | . . . . Weapon 9 | 2 3 . 4 Energy Gun 2 | 2 . . . Energy Cannon 2 | . . . 2 Ballistic Gun 3 | . 2 . 1 Ballistic Cannon . | . . . . Launcher 1 | . . . 1 Special Weapon . | . . . . Impact Weapon . | . . . . Slashing Weapon . | . . . . Piercing Weapon . | . . . . Special Melee Weapon 1 | . 1 . . Unidentified Prototypes . | . . . . Parts Lost 10 | . . . 10 Power 1 | . . . 1 Propulsion 2 | . . . 2 Utility 1 | . . . 1 Weapon 6 | . . . 6 Highest Loss Streak 10 | . . . 10 To Critical Strikes . | . . . . Average Backups 4 | 1 4 4 3 Power . | . . . . Propulsion . | 1 . . . Utility 1 | . 1 2 2 Weapon 1 | . 1 1 . Tool/Special . | . . . . Unused Backups 4 | . 4 . . Power . | . . . . Propulsion 1 | . 1 . . Utility 2 | . 2 . . Weapon 1 | . 1 . . Tool/Special . | . . . . Average Slot Usage (%) 92 | . 96 100 48 Engine 13 | . 14 14 4 Leg 26 | . 28 28 9 Device 15 | . 16 17 7 Storage 8 | . 8 10 9 Energy Gun 3 | . 4 . . Ballistic Gun 23 | . 23 28 12 Peak Build Rating 9 | 9 9 8 9 Average Rating 6 | 4 6 7 6 On Entrance 6 | . 9 7 8 Avg Prop Armor Cover (%) . | . . . . Naked Turns . | . . . . Heaviest Build 14 | 11 12 11 14 Greatest Support 20 | 20 20 20 20 Greatest Overweight (x) 3 | . . . 3 Average Overweight (x) . | . . . . Largest Inventory Capacity 8 | 8 8 8 8 Average Capacity 6 | 6 6 7 8 Most Carried 8 | 5 7 8 8 Average Carried 4 | 2 4 6 7 Final Capacity 8 | 8 5 8 8 Final Carried 8 | 2 5 8 7 Class Distribution -------------------- 48% | Scavenger-Mutant 47% | Mutant 3% | Scavenger-Gunner Dominant Class ---------------- Mutant | -10/Materials Scavenger-Mutant | -10/Subcaves Mutant | -8/Materials Resources | -11 -10 -10 -8 ----------- Run | Yrd Mat Sub Mat Matter Collected 540 | 242 263 35 . Remotely . | . . . . Salvage Created 1052 | 38 708 78 228 Parts 75 | 9 48 6 12 Haulers Intercepted . | . . . . Recyclers Shooed 3 | . 3 . . Parts Field Recycled . | . . . . Retrieved Matter . | . . . . Parts Self-Destructed 6 | . . 6 . Prevented . | . . . . Parts Restored . | . . . . Kills | -11 -10 -10 -8 ------- Run | Yrd Mat Sub Mat Combat Hostiles Destroyed 18 | . 13 2 3 Guns 15 | . 13 2 . AOE 3 | . . . 3 Classes Destroyed 8 | 1 6 1 . Worker 1 | . 1 . . Builder 3 | . 2 . 1 Tunneler 3 | 2 1 . . Recycler 4 | . 3 . 1 Watcher 3 | . 3 . . Swarmer 9 | . 9 . . Grunt 7 | . 4 1 2 Sentry 2 | . . 1 1 Best Kill Streak 4 | 2 3 2 4 Combat Bots Only 3 | . 3 2 2 Max Kills in Single Turn 4 | 1 1 1 4 Gunslinging . | . . . . Exploded 2 | . . . 2 Melee . | . . . . Uniques/NPCs Destroyed . | . . . . Combat | -11 -10 -10 -8 -------- Run | Yrd Mat Sub Mat Hostile Shots Fired 175 | . 60 6 109 Missed 44 | . 14 1 29 Hits 131 | . 46 5 80 Projectile 131 | . 46 5 80 Critical Strikes 2 | . 1 . 1 Damage Taken 1667 | . 433 50 1184 Core 673 | . 111 11 551 Absorbed by Shields . | . . . . Ignored by Resistances 480 | . 132 15 333 Core Remaining (%) 75 | 100 . 51 . Volleys Fired 95 | 4 65 5 21 Largest 3 | 2 2 2 3 Hottest 115 | 80 80 40 115 Shots Fired 180 | 8 130 10 32 Gun 170 | 8 130 10 22 Cannon 8 | . . . 8 Launcher 2 | . . . 2 Special . | . . . . Kinetic 112 | . 80 10 22 Thermal 66 | 8 50 . 8 Explosive 2 | . . . 2 Electromagnetic . | . . . . Robot Hit Streak 14 | 4 7 6 14 Robot Miss Streak 3 | 1 3 1 2 Penetration Max . | . . . . Secondary Targets . | . . . . Shots Hit Robots 131 | 6 89 8 28 Core Hits 56 | 2 37 3 14 Critical Kills . | . . . . Critical Parts Destroyed . | . . . . Critical Strikes . | . . . . Melee Attacks 3 | . 3 . . Impact . | . . . . Slashing . | . . . . Piercing . | . . . . Sneak Attacks 2 | . 2 . . Combat Hostiles . | . . . . Follow-up Attacks . | . . . . Damage Inflicted 1476 | 64 802 66 544 Guns 1106 | 64 802 66 174 Cannons 162 | . . . 162 Explosions 208 | . . . 208 Melee . | . . . . Ramming . | . . . . Kinetic 681 | . 441 66 174 Thermal 587 | 64 361 . 162 Explosive 208 | . . . 208 Electromagnetic . | . . . . Impact . | . . . . Slashing . | . . . . Piercing . | . . . . Highest Corruption . | . . . . Average Corruption . | . . . . Corruption Purged . | . . . . Corruption Blocked . | . . . . Overload Shots . | . . . . Overflow Damage 59 | . . . 59 Projectiles . | . . . . Explosions 59 | . . . 59 Melee . | . . . . Knockbacks . | . . . . Impact . | . . . . Kinetic . | . . . . Secondary . | . . . . Self-Inflicted Damage 140 | . . . 140 Shots 4 | . . . 4 Rammed . | . . . . Targets Rammed . | . . . . Kicked . | . . . . Crushed . | . . . . Highest Temperature 228 | 36 228 . 109 Average Temperature 69 | 20 83 . 46 Received Heat Transfer 921 | . 165 27 729 Effects 3 | . 3 . . Interference 3 | . 3 . . Siege Activations . | . . . . Martial Activations . | . . . . Shielding Activations . | . . . . Robots Disrupted . | . . . . Combat Hostiles . | . . . . Robots Corrupted . | . . . . Combat Hostiles . | . . . . Parts Fried . | . . . . Impact Corruptions . | . . . . Robots Melted . | . . . . Combat Hostiles . | . . . . Parts Melted 1 | . 1 . . Heat Transferred 1209 | 150 800 . 259 Parts Sabotaged . | . . . . Parts Stolen . | . . . . Parts Stripped . | . . . . Power Chain Reactions . | . . . . Alert | -11 -10 -10 -8 ------- Run | Yrd Mat Sub Mat Maximum Alert Level . | . . . . Low Security (%) 100 | 100 100 . 100 Level 1 . | . . . . Level 2 . | . . . . Level 3 . | . . . . Level 4 . | . . . . Level 5 . | . . . . High Security . | . . . . Max Security . | . . . . Peak Influence 167 | 5 167 . 84 Initial 2 | . 2 . . Average 39 | . 42 . 23 Influence Increases 597 | 10 413 40 134 Destroy 0b10 Robot/C 360 | . 260 40 60 Destroy 0b10 Robot/NC 70 | 10 50 . 10 Destroy Leader 56 | . 46 . 10 Successful Hack 27 | . 27 . . Disable Machine 18 | . . . 18 Destroy Structure 36 | . . . 36 Lose Combat Pursuer 30 | . 30 . . Influence Decreases 597 | 5 418 40 134 Entered New Map 3 | . 3 . . Time Decay 494 | 5 415 40 34 Lost Part 100 | . . . 100 Squads Dispatched 1 | . . . 1 Investigation . | . . . . Extermination . | . . . . Reinforcement 1 | . . . 1 Assault . | . . . . Garrison . | . . . . Intercept . | . . . . Searches Triggered . | . . . . Construction Impeded . | . . . . Haulers Reinforced . | . . . . Active Scanning Responses . | . . . . Cargo Convoy Interrupts . | . . . . Stealth | -11 -10 -10 -8 --------- Run | Yrd Mat Sub Mat Distress Signals 1 | . 1 . . Communications Jammed . | . . . . Distress Signals . | . . . . Times Spotted 37 | . 26 2 9 Peak Tracking Total 5 | . 5 2 5 Tactical Retreats 1 | . 1 . . Traps | -11 -10 -10 -8 ------- Run | Yrd Mat Sub Mat Traps Triggered 3 | . 3 . . Indirectly . | . . . . Trap Hack Attempts . | . . . . Triggered . | . . . . Disarmed . | . . . . Reprogrammed . | . . . . Reused . | . . . . Traps Extracted . | . . . . Installed . | . . . . Triggered . | . . . . Machines | -11 -10 -10 -8 ---------- Run | Yrd Mat Sub Mat Machines Disabled 2 | . . . 2 Max in Single Turn 2 | . . . 2 Machines Repaired . | . . . . Machines Dismantled . | . . . . Machines Sabotaged . | . . . . Overloaded Fab Kills . | . . . . Hacking | -11 -10 -10 -8 --------- Run | Yrd Mat Sub Mat Machines Accessed 7 | . 7 . . Terminals 6 | . 6 . . Fabricators . | . . . . Repair Stations . | . . . . Recycling Units 1 | . 1 . . Scanalyzers . | . . . . Garrison Access . | . . . . Total Hacks 19 | . 19 . . Successful 7 | . 7 . . Failed 12 | . 12 . . Catastrophic 1 | . 1 . . Database Lockouts . | . . . . Manual . | . . . . Terminals 16 | . 16 . . Fabricators . | . . . . Repair Stations . | . . . . Recycling Units 3 | . 3 . . Scanalyzers . | . . . . Garrison Access . | . . . . Terminal Hacks 7 | . 7 . . Level Access Points 1 | . 1 . . Alert Level 1 | . 1 . . Locate Traps 1 | . 1 . . Dispatch Records 1 | . 1 . . Reinforcement Status 1 | . 1 . . Hauler Manifests 1 | . 1 . . Zone Layout 1 | . 1 . . Fabricator Hacks . | . . . . Repair Station Hacks . | . . . . Recycling Unit Hacks . | . . . . Scanalyzer . | . . . . Garrison Access Hacks . | . . . . Unauthorized Hacks . | . . . . Terminals . | . . . . Fabricators . | . . . . Repair Stations . | . . . . Recycling Units . | . . . . Scanalyzers . | . . . . Garrison Access . | . . . . Data Cores Recovered . | . . . . Used . | . . . . Hacking Detections 5 | . 5 . . Full Trace Events . | . . . . Feedback Events . | . . . . Feedback Blocked . | . . . . Robot Schematics Acquired . | . . . . Robots Built . | . . . . Authchips . | . . . . Time . | . . . . Total Robot Build Rating . | . . . . Part Schematics Acquired . | . . . . Parts Built . | . . . . Authchips . | . . . . Time . | . . . . Total Part Build Rating . | . . . . Part Studies Acquired . | . . . . Parts Repaired . | . . . . Time . | . . . . Parts Recycled . | . . . . Recycled Matter . | . . . . Retrieved Matter . | . . . . Retrieved Components . | . . . . Parts Scanalyzed . | . . . . Part Schematics Acquired . | . . . . Parts Damaged . | . . . . Bothacking | -11 -10 -10 -8 ------------ Run | Yrd Mat Sub Mat Used RIF Installer . | . . . . Robots Hacked 2 | . 2 . . Non-combat 2 | . 2 . . Combat . | . . . . Robot Hacks Applied 2 | . 2 . . parse_system 2 | . 2 . . Relay Couplers Released . | . . . . Fabnet Peak Effective % . | . . . . Robots Rewired . | . . . . Allies Hacked . | . . . . Hacks Repelled . | . . . . Allies | -11 -10 -10 -8 -------- Run | Yrd Mat Sub Mat Total Allies . | . . . . Largest Group . | . . . . Highest-Rated Group . | . . . . Highest-Rated Ally . | . . . . Total Orders . | . . . . Ally Attacks . | . . . . Total Damage . | . . . . Kills . | . . . . Allies Corrupted . | . . . . Allies Melted . | . . . . Intel | -11 -10 -10 -8 ------- Run | Yrd Mat Sub Mat Active Infowar (turns) 1431 | 3 1131 182 115 Terrain 750 | 3 705 42 . Structural 764 | . 724 40 . Seismic 255 | . . 140 115 ECM 337 | . 337 . . Robot Analysis Total . | . . . . Derelict Logs Recovered 1 | . . 1 . Drone Launches . | . . . . Drone Recoveries . | . . . . Exploration | -11 -10 -10 -8 ------------- Run | Yrd Mat Sub Mat Turns Passed 1879 | 74 1483 182 140 Spaces Moved 1227 | 51 975 132 69 Core 35 | 20 . . 15 Treads . | . . . . Legs 1192 | 31 975 132 54 Wheels . | . . . . Hover . | . . . . Flight . | . . . . Fastest Speed 50 | 50 120 120 100 Average Speed 118 | 92 120 120 119 Slowest Speed 200 | 120 120 120 200 Overloaded Moves . | . . . . Propulsion Burnouts . | . . . . Robots Hopped . | . . . . Potential Cave-ins . | . . . . Cave-ins Triggered . | . . . . Exploration Rate (%) 31 | 3 97 14 10 Regions Visited 3 Branch Regions 1 Pre-discovered Areas 1 | . . 1 . Known Exits Taken . | . . . . Unknown Exits Taken 3 | 1 1 1 . Scrap Searched . | . . . . Spaces Dug . | . . . . Terrain Destroyed 56 | . . . 56 Melee . | . . . . Projectile 1 | . . . 1 AOE 55 | . . . 55 Terrain Rammed . | . . . . Walls Destroyed . | . . . . Machines Disabled . | . . . . Actions | -11 -10 -10 -8 --------- Run | Yrd Mat Sub Mat Total 1489 | 70 1170 147 102 Wait 94 | . 90 4 . Move 1224 | 50 974 131 69 Hop . | . . . . Pick Up 30 | 9 12 4 5 Fast Attach . | . . . . Attach 14 | 7 2 1 4 Detach 1 | . 1 . . Swap 16 | . 14 1 1 Drop 12 | . 9 1 2 Fire 95 | 4 65 5 21 Melee 3 | . 3 . . Ram . | . . . . Kick . | . . . . Crush . | . . . . Escape Stasis . | . . . . Rewire . | . . . . Trap . | . . . . Miscellaneous . | . . . . Route ------- -11/Scrapyard -10/Materials (discovered 6 exits: *Mat x3 / [*Min x2] / [*Sub]) -10/Subcaves -8/Materials History --------- Turn | Location | Event 9 | -11/Scrapyard | Discovered new exit (range 15) 75 | -11/Scrapyard | Entered Materials 309 | -10/Materials | Discovered new exit (range 12) 325 | -10/Materials | Build established: Mutant 403 | -10/Materials | Discovered new exit (range 12) 618 | -10/Materials | Discovered new exit (range 15) 1118 | -10/Materials | Identified exit to Materials 1130 | -10/Materials | Build established: Scavenger-Mutant 1135 | -10/Materials | Discovered new exit (range 6) 1543 | -10/Materials | Discovered new exit (range 6) 1558 | -10/Materials | Entered Subcaves 1559 | -10/Subcaves | Approached by a straggling Scientist 1699 | -10/Subcaves | Discovered new exit (range 12) 1704 | -10/Subcaves | Learned location of Mines (-8) 1713 | -10/Subcaves | Shifting Twisted Machinery released Battle Cannon 1719 | -10/Subcaves | Shifting Twisted Machinery released Enh. Flamer 1740 | -10/Subcaves | Entered Materials 1740 | -8/Materials | Evolved 4 slots: Power x1, Propulsion x2, Weapon x1 1859 | -8/Materials | Core integrity fell below 50% 1873 | -8/Materials | Core integrity fell below 20% 1880 | -8/Materials | Destroyed by G-47 Trooper with Particle Gun Last Messages --------------- U-05 Engineer builds a Wall. [Achievement: There's More Where That Came From] G-47 Trooper destroyed. U-05 Engineer destroyed. R-06 Scavenger destroyed. Grenade Launcher destroyed. Lgt. Assault Rifle destroyed. Critical hit (Burn: +37). Lgt. Assault Rifle destroyed. Acquired Ion Cannon. G-47 Trooper destroyed. Seismic Detector destroyed. Ion Cannon destroyed. Acquired Aluminum Leg. Dropped Scrap Shield Fragment. Acquired Scrap Shield Fragment. Dropped Scrap Shield Fragment. The unstable cave ceiling collapses. Acquired Hvy. Assault Rifle. Hvy. Assault Rifle destroyed. Map ----- +----------------------------------------------------+ | ???????????????????????????????? | | ???????????????????????????????? | | ???????????????????????????????? | | ???????????????????????????????? | | ???????????????????????????????? | | ???????????????????????????????? | | ???????????????????????????????? | | ???????????????????????????????? | | ???????????????????????????????? | | ???????????????????????????????? | | ?????????????????? ???????????? | | ????????????????## ???????????? | | ????????????????# ???????????? | | ????????????????+ ???????????? | | ????????????????# ?????####??? | | ????????????????# ?#### #### | | ????????????????# ##;;;;;;;; # | | ????????????????# # ; # | | ????????????????# # ; # | | ????????????????# # # | | ????????????????# # # | | ?????############ #g g # | | ?????# %# %g # | | ?????# ^ !*% # | | ?????# !*g & | | ??????? " ^ """ [%= @ ;# | | ?????????"" """ # # ;;## | | ?????????"" """ !%! #? | | ????????""" ^ *# ###? | | ????????"" #######??? | | ????????""" #????????? | | ?????????"" #########? | | ????????""" # # | | ??????? " # """"" ?? | | ?????? ^ # """"" ?? | | ?????? # """"" ?? | | ?????? # """"" ?? | | ?????? # """"" ?? | | ?????? + """"" ?? | | ?????# # """""??? | | ?????? # ?? | | ???????########## ##########? | | ????????????????# # #? | | ????????????????# # """ " #? | | ????????????????# # """ T #? | | ????????????????# # """ " #? | | ????????????????# # #? | | ????????????????# + """ #? | | ????????????????# # """ #? | | ????????????????# # """ #? | +----------------------------------------------------+ Best States ------------- Heat Dissipation 31 Energy Generation 10 Energy Capacity 125 Matter Stores 300 Matter Capacity 300 Sight Range 16 Terrain Scan Range 16 Terrain Scan Density 10 ECM Strength 1 Resistance: KI 20 Resistance: TH 20 Resistance: EX 20 Resistance: EM 20 Resistance: I 20 Resistance: S 20 Resistance: P 20 Evasion (%) 55 Offensive Hacking 10 Item Schematics ----------------- None Robot Schematics ------------------ None Fabricated ------------ Nothing Repaired ---------- Nothing Studied --------- None Alien Tech Used ----------------- None Achievements -------------- DATA ERROR: Steam Global Achievement% Ghost 'Em Junior Dev Not Today, Chutes Organ Harvest Overwhelming Resistances Are Futile There's More Where That Came From Challenges ------------ None Game ------ Seed InsulationNavigationPlating Manual? 0 Play Time 00:20:25 Cumulative 8.5 hours Start 2026.02.08 @ 04:31:22 End 2026.02.08 @ 04:52:03 Sessions 1 Manual Loads 0 Difficulty Adventurer Special Mode None Game No. 14 Rogue 0 Adventurer 14 Explorer 0 Win Type - Total 0 Types 0/0/0/0/0/0/0/0/0/0 Lore% 17 Gallery% 13 Achievement% 11 Wizard Run 0 Options --------- Layout 1 ASCII 0 Keyboard 0 Movement Mouse Keybinds 0 Fullscreen 1 Font 32/SmallcapsGlow Map View 50x35 Zoom Use 0% Tactical HUD 0 Map Filters NONE Filters NONE Steam 1 RUN: b8e97483-a2e6-492f-9f01-a3caf5e0c320